[Event "Titled Tuesday Blitz July 6 2021"]
[White "Pakleza, Zbigniew"]
[Black "Eternauta2400"]
[WhiteFideId "1119290"]
[WhiteElo "2526"]
[BlackElo "2487"]
[Result "1-0"]
[Round "07"]
[TimeControl "180+1"]
[Date "2021.07.06"]
[WhiteClock "0:00:17"]
[BlackClock "0:00:15"]

1. d4 {[%clk 0:03:00]}  Nf6 {[%clk 0:02:59]} 2. Nf3 {[%clk 0:03:00]}  e6 {[%clk 0:02:59]} 3. Bf4 {[%clk 0:03:00]}  d5 {[%clk 0:02:55]} 4. e3 {[%clk 0:03:00]}  c5 {[%clk 0:02:55]} 5. c3 {[%clk 0:03:00]}  Bd6 {[%clk 0:02:55]} 6. Bg3 {[%clk 0:03:00]}  Nc6 {[%clk 0:02:55]} 7. Nbd2 {[%clk 0:02:54]}  O-O {[%clk 0:02:54]} 8. Bd3 {[%clk 0:02:53]}  Ne7 {[%clk 0:02:54]} 9. O-O {[%clk 0:02:45]}  Nf5 {[%clk 0:02:53]} 10. Bxf5 {[%clk 0:02:45]}  exf5 {[%clk 0:02:54]} 11. Bxd6 {[%clk 0:02:40]}  Qxd6 {[%clk 0:02:54]} 12. dxc5 {[%clk 0:02:38]}  Qxc5 {[%clk 0:02:55]} 13. Qb3 {[%clk 0:02:33]}  b6 {[%clk 0:02:50]} 14. Rfd1 {[%clk 0:02:27]}  Qc7 {[%clk 0:02:49]} 15. Nd4 {[%clk 0:02:05]}  f4 {[%clk 0:02:48]} 16. exf4 {[%clk 0:02:03]}  Qxf4 {[%clk 0:02:49]} 17. Nf1 {[%clk 0:01:38]}  Bg4 {[%clk 0:02:42]} 18. Re1 {[%clk 0:01:30]}  Rfe8 {[%clk 0:02:42]} 19. Qc2 {[%clk 0:01:23]}  Bh5 {[%clk 0:02:39]} 20. Qd2 {[%clk 0:01:21]}  Qd6 {[%clk 0:02:35]} 21. Ng3 {[%clk 0:01:13]}  Bg6 {[%clk 0:02:34]} 22. h3 {[%clk 0:01:07]}  h6 {[%clk 0:02:34]} 23. Rxe8+ {[%clk 0:01:02]}  Rxe8 {[%clk 0:02:34]} 24. Re1 {[%clk 0:01:03]}  Ne4 {[%clk 0:02:33]} 25. Nxe4 {[%clk 0:00:52]}  dxe4 {[%clk 0:02:34]} 26. Rd1 {[%clk 0:00:43]}  Kh7 {[%clk 0:02:32]} 27. Nb5 {[%clk 0:00:39]}  Qc5 {[%clk 0:02:11]} 28. Qd7 {[%clk 0:00:37]}  Re5 {[%clk 0:01:41]} 29. Nd4 {[%clk 0:00:30]}  e3 {[%clk 0:01:39]} 30. fxe3 {[%clk 0:00:26]}  Rxe3 {[%clk 0:01:40]} 31. Kh1 {[%clk 0:00:18]}  Qe5 {[%clk 0:01:35]} 32. Qg4 {[%clk 0:00:14]}  Be4 {[%clk 0:01:13]} 33. Rf1 {[%clk 0:00:13]}  Rg3 {[%clk 0:01:07]} 34. Qf4 {[%clk 0:00:13]}  Qxf4 {[%clk 0:00:21]} 35. Rxf4 {[%clk 0:00:14]}  Bxg2+ {[%clk 0:00:19]} 36. Kh2 {[%clk 0:00:14]}  Rg6 {[%clk 0:00:20]} 37. Rxf7 {[%clk 0:00:13]}  Bd5 {[%clk 0:00:20]} 38. Rf2 {[%clk 0:00:14]}  Bxa2 {[%clk 0:00:15]} 39. b3 {[%clk 0:00:13]}  Bb1 {[%clk 0:00:15]} 40. Re2 {[%clk 0:00:14]}  a5 {[%clk 0:00:14]} 41. h4 {[%clk 0:00:12]}  Rg4 {[%clk 0:00:13]} 42. Kh3 {[%clk 0:00:12]}  h5 {[%clk 0:00:11]} 43. Re5 {[%clk 0:00:10]}  g6 {[%clk 0:00:10]} 44. Rb5 {[%clk 0:00:06]}  Bd3 {[%clk 0:00:04]} 45. Rxb6 {[%clk 0:00:07]}  Bf1+ {[%clk 0:00:04]} 46. Kh2 {[%clk 0:00:08]}  Rxh4+ {[%clk 0:00:05]} 47. Kg1 {[%clk 0:00:09]}  Bd3 {[%clk 0:00:04]} 48. Kf2 {[%clk 0:00:07]}  Rh3 {[%clk 0:00:03]} 49. c4 {[%clk 0:00:07]}  Be4 {[%clk 0:00:01]} 50. c5 {[%clk 0:00:05]}  Rd3 {[%clk 0:00:02]} 51. Ne6 {[%clk 0:00:04]}  Kh6 {[%clk 0:00:02]} 52. Ke2 {[%clk 0:00:02]}  Rc3 {[%clk 0:00:03]} 53. Kd2 {[%clk 0:00:03]}  Rc2+ {[%clk 0:00:03]} 54. Ke3 {[%clk 0:00:04]}  Bd5 {[%clk 0:00:03]} 55. Nf4 {[%clk 0:00:04]}  Rxc5 {[%clk 0:00:02]} 56. Kd4 {[%clk 0:00:04]}  Rc6 {[%clk 0:00:01]} 57. Nxd5 {[%clk 0:00:05]}  Rxb6 {[%clk 0:00:01]} 58. Nxb6 {[%clk 0:00:05]}  h4 {[%clk 0:00:01]} 59. Ke3 {[%clk 0:00:06]}  h3 {[%clk 0:00:02]} 60. Kf2 {[%clk 0:00:07]}  Kh5 {[%clk 0:00:02]} 61. Kg3 {[%clk 0:00:07]}  Kg5 {[%clk 0:00:03]} 62. Nc4 {[%clk 0:00:07]}  Kf5 {[%clk 0:00:01]} 63. Kxh3 {[%clk 0:00:07]}  Ke4 {[%clk 0:00:01]} 64. Nxa5 {[%clk 0:00:07]}  Kd4 {[%clk 0:00:02]} 65. Nc4 {[%clk 0:00:08]}  Kc3 {[%clk 0:00:01]} 66. Nd2 {[%clk 0:00:08]}  Kb4 {[%clk 0:00:01]} 67. Kg4 {[%clk 0:00:09]}  Kc3 {[%clk 0:00:02]} 68. Kg5 {[%clk 0:00:09]}  Kb4 {[%clk 0:00:03]} 69. Kxg6 {[%clk 0:00:09]}  Kc3 {[%clk 0:00:04]} 70. Kf5 {[%clk 0:00:10]}  Kb4 {[%clk 0:00:05]} 71. Ke4 {[%clk 0:00:10]}  Kc3 {[%clk 0:00:05]} 72. Ke3 {[%clk 0:00:11]}  Kb4 {[%clk 0:00:06]} 73. Kd3 {[%clk 0:00:12]}  Kb5 {[%clk 0:00:07]} 74. Kc3 {[%clk 0:00:12]}  Ka5 {[%clk 0:00:08]} 75. b4+ {[%clk 0:00:12]}  Kb6 {[%clk 0:00:09]} 76. Kb3 {[%clk 0:00:13]}  Ka6 {[%clk 0:00:10]} 77. Kc4 {[%clk 0:00:14]}  Ka7 {[%clk 0:00:11]} 78. b5 {[%clk 0:00:14]}  Kb7 {[%clk 0:00:12]} 79. Kc5 {[%clk 0:00:15]}  Kb8 {[%clk 0:00:13]} 80. b6 {[%clk 0:00:15]}  Ka8 {[%clk 0:00:14]} 81. Kc6 {[%clk 0:00:16]}  Kb8 {[%clk 0:00:14]} 82. b7 {[%clk 0:00:17]}  Ka7 {[%clk 0:00:15]} 83. Kc7 {[%clk 0:00:17]} 1-0


[Site "https://www.chess.com"]

[Event "Titled Tuesday Blitz July 6 2021"]
[White "Pert, Richard G"]
[Black "Obolentseva, Alexandra"]
[WhiteFideId "404748"]
[BlackFideId "24153648"]
[WhiteElo "2441"]
[BlackElo "2113"]
[Result "1/2-1/2"]
[Round "07"]
[TimeControl "180+1"]
[Date "2021.07.06"]
[WhiteClock "0:00:13"]
[BlackClock "0:00:10"]

1. d4 {[%clk 0:03:00]}  Nf6 {[%clk 0:02:58]} 2. Bg5 {[%clk 0:02:59]}  Ne4 {[%clk 0:02:56]} 3. Bf4 {[%clk 0:03:00]}  c5 {[%clk 0:02:53]} 4. f3 {[%clk 0:02:58]}  Nf6 {[%clk 0:02:46]} 5. dxc5 {[%clk 0:02:58]}  Qa5+ {[%clk 0:02:46]} 6. Nc3 {[%clk 0:02:58]}  Qxc5 {[%clk 0:02:46]} 7. e4 {[%clk 0:02:57]}  d6 {[%clk 0:02:45]} 8. Qd2 {[%clk 0:02:57]}  a6 {[%clk 0:02:37]} 9. O-O-O {[%clk 0:02:57]}  Nbd7 {[%clk 0:02:36]} 10. Nge2 {[%clk 0:02:53]}  b5 {[%clk 0:02:35]} 11. Be3 {[%clk 0:02:48]}  Qc7 {[%clk 0:02:34]} 12. Kb1 {[%clk 0:02:46]}  Bb7 {[%clk 0:02:34]} 13. g4 {[%clk 0:02:41]}  Ne5 {[%clk 0:02:33]} 14. Nd4 {[%clk 0:02:39]}  Nfd7 {[%clk 0:02:24]} 15. Nd5 {[%clk 0:02:33]}  Bxd5 {[%clk 0:02:23]} 16. exd5 {[%clk 0:02:34]}  Nb6 {[%clk 0:02:23]} 17. f4 {[%clk 0:02:17]}  Nxg4 {[%clk 0:02:18]} 18. Bg1 {[%clk 0:02:09]}  Nf6 {[%clk 0:02:12]} 19. Qa5 {[%clk 0:01:54]}  Nfxd5 {[%clk 0:01:55]} 20. Bg2 {[%clk 0:01:22]}  e6 {[%clk 0:01:25]} 21. f5 {[%clk 0:01:22]}  Rc8 {[%clk 0:01:10]} 22. Qxa6 {[%clk 0:01:13]}  Qd7 {[%clk 0:00:50]} 23. fxe6 {[%clk 0:01:11]}  fxe6 {[%clk 0:00:51]} 24. Qxb5 {[%clk 0:01:03]}  Qxb5 {[%clk 0:00:50]} 25. Nxb5 {[%clk 0:01:04]}  Be7 {[%clk 0:00:49]} 26. Bxb6 {[%clk 0:00:59]}  Nxb6 {[%clk 0:00:48]} 27. Nxd6+ {[%clk 0:00:58]}  Bxd6 {[%clk 0:00:46]} 28. Rxd6 {[%clk 0:00:59]}  Nc4 {[%clk 0:00:44]} 29. Rxe6+ {[%clk 0:00:59]}  Kd7 {[%clk 0:00:45]} 30. Bh3 {[%clk 0:00:52]}  Rc5 {[%clk 0:00:37]} 31. Rd1+ {[%clk 0:00:36]}  Kc7 {[%clk 0:00:35]} 32. b3 {[%clk 0:00:32]}  Na3+ {[%clk 0:00:31]} 33. Kb2 {[%clk 0:00:32]}  Rxc2+ {[%clk 0:00:26]} 34. Ka1 {[%clk 0:00:25]}  Ra8 {[%clk 0:00:18]} 35. Rf1 {[%clk 0:00:22]}  Rd8 {[%clk 0:00:14]} 36. Rf7+ {[%clk 0:00:21]}  Kb8 {[%clk 0:00:13]} 37. Rb6+ {[%clk 0:00:21]}  Ka8 {[%clk 0:00:11]} 38. Ra6+ {[%clk 0:00:20]}  Kb8 {[%clk 0:00:10]} 39. Rb6+ {[%clk 0:00:19]}  Ka8 {[%clk 0:00:10]} 40. Ra6+ {[%clk 0:00:16]}  Kb8 {[%clk 0:00:10]} 41. Rb6+ {[%clk 0:00:13]} 1/2-1/2


[Site "https://www.chess.com"]

[Event "Titled Tuesday Blitz July 6 2021"]
[White "Petriashvili, Nikoloz"]
[Black "Galego, Luis"]
[WhiteFideId "13611216"]
[BlackFideId "1900072"]
[WhiteElo "2430"]
[BlackElo "2524"]
[Result "1-0"]
[Round "07"]
[TimeControl "180+1"]
[Date "2021.07.06"]
[WhiteClock "0:01:13"]
[BlackClock "0:00:10"]

1. e4 {[%clk 0:03:00]}  c5 {[%clk 0:02:59]} 2. Nf3 {[%clk 0:02:58]}  d6 {[%clk 0:02:59]} 3. d4 {[%clk 0:02:58]}  Nf6 {[%clk 0:03:00]} 4. dxc5 {[%clk 0:02:57]}  Nxe4 {[%clk 0:02:58]} 5. cxd6 {[%clk 0:02:58]}  Qxd6 {[%clk 0:02:55]} 6. Qxd6 {[%clk 0:02:57]}  Nxd6 {[%clk 0:02:54]} 7. Bf4 {[%clk 0:02:58]}  Bf5 {[%clk 0:02:35]} 8. Bxd6 {[%clk 0:02:57]}  exd6 {[%clk 0:02:35]} 9. Nd4 {[%clk 0:02:53]}  Bg6 {[%clk 0:02:32]} 10. Bb5+ {[%clk 0:02:51]}  Nd7 {[%clk 0:02:31]} 11. Nc3 {[%clk 0:02:51]}  O-O-O {[%clk 0:02:26]} 12. Bxd7+ {[%clk 0:02:46]}  Rxd7 {[%clk 0:02:19]} 13. O-O-O {[%clk 0:02:46]}  Be7 {[%clk 0:02:19]} 14. Nd5 {[%clk 0:02:45]}  Bd8 {[%clk 0:02:14]} 15. Rhe1 {[%clk 0:02:44]}  h5 {[%clk 0:01:58]} 16. b3 {[%clk 0:02:20]}  h4 {[%clk 0:01:58]} 17. Kb2 {[%clk 0:02:20]}  Rh5 {[%clk 0:01:36]} 18. c4 {[%clk 0:02:11]}  Re5 {[%clk 0:01:36]} 19. Nf3 {[%clk 0:02:05]}  Re6 {[%clk 0:01:31]} 20. Nd4 {[%clk 0:02:02]}  Re5 {[%clk 0:01:30]} 21. f4 {[%clk 0:02:00]}  Rh5 {[%clk 0:00:57]} 22. Re8 {[%clk 0:01:50]}  f6 {[%clk 0:00:35]} 23. Rf8 {[%clk 0:01:49]}  Be4 {[%clk 0:00:33]} 24. Re1 {[%clk 0:01:41]}  Bxd5 {[%clk 0:00:29]} 25. cxd5 {[%clk 0:01:41]}  Rxd5 {[%clk 0:00:29]} 26. Ne6 {[%clk 0:01:33]}  Rd2+ {[%clk 0:00:22]} 27. Kb1 {[%clk 0:01:33]}  Rxg2 {[%clk 0:00:12]} 28. Rc1+ {[%clk 0:01:33]}  Kb8 {[%clk 0:00:10]} 29. Nxd8 {[%clk 0:01:33]}  b5 {[%clk 0:00:10]} 30. Nc6+ {[%clk 0:01:30]}  Kb7 {[%clk 0:00:11]} 31. Rb8+ {[%clk 0:01:30]}  Ka6 {[%clk 0:00:11]} 32. Nb4+ {[%clk 0:01:30]}  Ka5 {[%clk 0:00:11]} 33. Rc6 {[%clk 0:01:30]}  Kxb4 {[%clk 0:00:10]} 34. Rc4+ {[%clk 0:01:18]}  Ka3 {[%clk 0:00:10]} 35. Rxb5 {[%clk 0:01:14]}  Rb2+ {[%clk 0:00:10]} 36. Kc1 {[%clk 0:01:14]}  Kxa2 {[%clk 0:00:10]} 37. Ra4# {[%clk 0:01:13]} 1-0


[Site "https://www.chess.com"]

[Event "Titled Tuesday Blitz July 6 2021"]
[White "Pohjala, Henri"]
[Black "Maghsoodloo, Parham"]
[WhiteFideId "506478"]
[BlackFideId "12539929"]
[WhiteElo "2365"]
[BlackElo "2601"]
[Result "1/2-1/2"]
[Round "07"]
[TimeControl "180+1"]
[Date "2021.07.06"]
[WhiteClock "0:00:08"]
[BlackClock "0:00:46"]

1. d4 {[%clk 0:03:00]}  Nf6 {[%clk 0:02:59]} 2. Bg5 {[%clk 0:03:01]}  d5 {[%clk 0:02:59]} 3. Bxf6 {[%clk 0:03:01]}  gxf6 {[%clk 0:02:58]} 4. e3 {[%clk 0:03:01]}  c5 {[%clk 0:02:58]} 5. dxc5 {[%clk 0:03:02]}  e6 {[%clk 0:02:58]} 6. Nf3 {[%clk 0:03:02]}  Bxc5 {[%clk 0:02:57]} 7. a3 {[%clk 0:03:02]}  a6 {[%clk 0:02:54]} 8. c4 {[%clk 0:03:02]}  dxc4 {[%clk 0:02:54]} 9. Qxd8+ {[%clk 0:03:02]}  Kxd8 {[%clk 0:02:55]} 10. Bxc4 {[%clk 0:03:02]}  b5 {[%clk 0:02:56]} 11. Bd3 {[%clk 0:03:02]}  Bb7 {[%clk 0:02:56]} 12. Nbd2 {[%clk 0:03:00]}  f5 {[%clk 0:02:56]} 13. Ke2 {[%clk 0:02:56]}  Nd7 {[%clk 0:02:56]} 14. Rhd1 {[%clk 0:02:56]}  Ke7 {[%clk 0:02:56]} 15. e4 {[%clk 0:02:50]}  f4 {[%clk 0:02:49]} 16. e5 {[%clk 0:02:46]}  f5 {[%clk 0:02:49]} 17. exf6+ {[%clk 0:02:40]}  Nxf6 {[%clk 0:02:49]} 18. Rac1 {[%clk 0:02:19]}  Rac8 {[%clk 0:02:49]} 19. g3 {[%clk 0:02:10]}  Rhd8 {[%clk 0:02:42]} 20. Rc2 {[%clk 0:01:54]}  Bd6 {[%clk 0:02:34]} 21. Rxc8 {[%clk 0:01:52]}  Rxc8 {[%clk 0:02:35]} 22. Kf1 {[%clk 0:01:44]}  Rc5 {[%clk 0:02:16]} 23. Re1 {[%clk 0:01:38]}  Kf7 {[%clk 0:02:15]} 24. Ne4 {[%clk 0:01:28]}  Rd5 {[%clk 0:02:08]} 25. Nxd6+ {[%clk 0:01:26]}  Rxd6 {[%clk 0:02:07]} 26. Ne5+ {[%clk 0:01:26]}  Kg7 {[%clk 0:02:05]} 27. gxf4 {[%clk 0:01:24]}  Nh5 {[%clk 0:02:04]} 28. Be4 {[%clk 0:01:20]}  Bxe4 {[%clk 0:02:03]} 29. Rxe4 {[%clk 0:01:21]}  Kf6 {[%clk 0:02:03]} 30. Nf3 {[%clk 0:01:11]}  Rd3 {[%clk 0:01:59]} 31. Nd4 {[%clk 0:01:06]}  Ng7 {[%clk 0:01:45]} 32. Ke2 {[%clk 0:01:06]}  Rh3 {[%clk 0:01:45]} 33. Nf3 {[%clk 0:01:06]}  h6 {[%clk 0:01:35]} 34. a4 {[%clk 0:01:04]}  Nf5 {[%clk 0:01:33]} 35. axb5 {[%clk 0:00:48]}  axb5 {[%clk 0:01:34]} 36. Re5 {[%clk 0:00:41]}  b4 {[%clk 0:01:04]} 37. Re4 {[%clk 0:00:40]}  b3 {[%clk 0:01:04]} 38. Rb4 {[%clk 0:00:40]}  h5 {[%clk 0:01:03]} 39. Rxb3 {[%clk 0:00:38]}  Nh4 {[%clk 0:01:04]} 40. Nd4 {[%clk 0:00:29]}  Rxh2 {[%clk 0:01:03]} 41. Re3 {[%clk 0:00:27]}  Nf5 {[%clk 0:01:02]} 42. Nxf5 {[%clk 0:00:23]}  exf5 {[%clk 0:00:52]} 43. b4 {[%clk 0:00:23]}  Rh4 {[%clk 0:00:53]} 44. b5 {[%clk 0:00:20]}  Rxf4 {[%clk 0:00:52]} 45. Rb3 {[%clk 0:00:20]}  Re4+ {[%clk 0:00:51]} 46. Kf3 {[%clk 0:00:20]}  Re7 {[%clk 0:00:51]} 47. b6 {[%clk 0:00:21]}  Rb7 {[%clk 0:00:51]} 48. Kf4 {[%clk 0:00:21]}  h4 {[%clk 0:00:51]} 49. Rb5 {[%clk 0:00:20]}  Kg6 {[%clk 0:00:51]} 50. f3 {[%clk 0:00:17]}  Kh6 {[%clk 0:00:50]} 51. Kxf5 {[%clk 0:00:16]}  h3 {[%clk 0:00:50]} 52. Rb2 {[%clk 0:00:15]}  Kh5 {[%clk 0:00:48]} 53. Ke5 {[%clk 0:00:13]}  Kh4 {[%clk 0:00:48]} 54. Kd5 {[%clk 0:00:10]}  Kg3 {[%clk 0:00:48]} 55. Kc6 {[%clk 0:00:10]}  Rb8 {[%clk 0:00:47]} 56. Kc7 {[%clk 0:00:09]}  Rxb6 {[%clk 0:00:44]} 57. Kxb6 {[%clk 0:00:08]}  Kxf3 {[%clk 0:00:44]} 58. Kc5 {[%clk 0:00:08]}  Kg3 {[%clk 0:00:44]} 59. Kd4 {[%clk 0:00:08]}  h2 {[%clk 0:00:44]} 60. Rb1 {[%clk 0:00:08]}  Kg2 {[%clk 0:00:45]} 61. Ke3 {[%clk 0:00:08]}  h1=Q {[%clk 0:00:45]} 62. Rxh1 {[%clk 0:00:08]}  Kxh1 {[%clk 0:00:46]} 1/2-1/2


[Site "https://www.chess.com"]

[Event "Titled Tuesday Blitz July 6 2021"]
[White "Potapova, Margarita"]
[Black "Vivas Zamora, Fabian Ernesto"]
[WhiteFideId "14126869"]
[BlackFideId "3902480"]
[WhiteElo "2229"]
[BlackElo "1966"]
[Result "0-1"]
[Round "07"]
[TimeControl "180+1"]
[Date "2021.07.06"]
[WhiteClock "0:00:32"]
[BlackClock "0:00:32"]

1. d4 {[%clk 0:03:00]}  Nf6 {[%clk 0:02:59]} 2. c4 {[%clk 0:03:01]}  g6 {[%clk 0:02:58]} 3. Nc3 {[%clk 0:03:01]}  d5 {[%clk 0:02:59]} 4. cxd5 {[%clk 0:03:02]}  Nxd5 {[%clk 0:02:59]} 5. e4 {[%clk 0:03:03]}  Nxc3 {[%clk 0:02:59]} 6. bxc3 {[%clk 0:03:04]}  Bg7 {[%clk 0:03:00]} 7. Be3 {[%clk 0:03:05]}  c5 {[%clk 0:03:01]} 8. Rc1 {[%clk 0:03:05]}  Qa5 {[%clk 0:02:58]} 9. Qd2 {[%clk 0:03:05]}  cxd4 {[%clk 0:02:54]} 10. cxd4 {[%clk 0:03:06]}  Qxd2+ {[%clk 0:02:55]} 11. Bxd2 {[%clk 0:03:06]}  O-O {[%clk 0:02:51]} 12. Nf3 {[%clk 0:03:07]}  Bg4 {[%clk 0:02:37]} 13. Be3 {[%clk 0:03:06]}  Nc6 {[%clk 0:02:23]} 14. d5 {[%clk 0:03:04]}  Nb4 {[%clk 0:02:21]} 15. a3 {[%clk 0:02:43]}  Na2 {[%clk 0:02:19]} 16. Rc2 {[%clk 0:02:42]}  Nc3 {[%clk 0:02:16]} 17. Bd3 {[%clk 0:02:33]}  f5 {[%clk 0:02:13]} 18. exf5 {[%clk 0:01:36]}  Bxf5 {[%clk 0:02:09]} 19. Bxf5 {[%clk 0:01:26]}  Rxf5 {[%clk 0:02:10]} 20. O-O {[%clk 0:01:09]}  Nxd5 {[%clk 0:02:02]} 21. Bd4 {[%clk 0:01:09]}  e5 {[%clk 0:01:53]} 22. Bb2 {[%clk 0:01:05]}  e4 {[%clk 0:01:29]} 23. Nd4 {[%clk 0:01:01]}  Rf7 {[%clk 0:01:08]} 24. Ne6 {[%clk 0:00:59]}  Bxb2 {[%clk 0:01:05]} 25. Rxb2 {[%clk 0:00:59]}  Re8 {[%clk 0:01:01]} 26. Nc5 {[%clk 0:00:59]}  b6 {[%clk 0:00:59]} 27. Nb3 {[%clk 0:00:57]}  e3 {[%clk 0:00:55]} 28. Nd4 {[%clk 0:00:38]}  Re4 {[%clk 0:00:35]} 29. fxe3 {[%clk 0:00:35]}  Rxf1+ {[%clk 0:00:33]} 30. Kxf1 {[%clk 0:00:36]}  Nxe3+ {[%clk 0:00:33]} 31. Ke2 {[%clk 0:00:37]}  Nc4+ {[%clk 0:00:31]} 32. Kd3 {[%clk 0:00:32]}  Rxd4+ {[%clk 0:00:32]} 33. Kxd4 {[%clk 0:00:31]}  Nxb2 {[%clk 0:00:32]} 34. Kc3 {[%clk 0:00:32]}  Na4+ {[%clk 0:00:32]} 0-1


[Site "https://www.chess.com"]

[Event "Titled Tuesday Blitz July 6 2021"]
[White "Priasmoro, Novendra"]
[Black "Jakubowski, Krzysztof"]
[WhiteFideId "7105029"]
[BlackFideId "1112848"]
[WhiteElo "2309"]
[BlackElo "2462"]
[Result "1-0"]
[Round "07"]
[TimeControl "180+1"]
[Date "2021.07.06"]
[WhiteClock "0:01:11"]
[BlackClock "0:00:08"]

1. e4 {[%clk 0:03:00]}  c5 {[%clk 0:02:58]} 2. Nf3 {[%clk 0:02:59]}  e6 {[%clk 0:02:57]} 3. d4 {[%clk 0:02:59]}  cxd4 {[%clk 0:02:57]} 4. Nxd4 {[%clk 0:03:00]}  Nc6 {[%clk 0:02:56]} 5. Nc3 {[%clk 0:02:57]}  Qc7 {[%clk 0:02:56]} 6. Be3 {[%clk 0:02:55]}  a6 {[%clk 0:02:55]} 7. Bd3 {[%clk 0:02:53]}  Nf6 {[%clk 0:02:51]} 8. O-O {[%clk 0:02:54]}  Ne5 {[%clk 0:02:47]} 9. Be2 {[%clk 0:02:54]}  Bc5 {[%clk 0:02:22]} 10. Kh1 {[%clk 0:02:50]}  d6 {[%clk 0:02:12]} 11. f4 {[%clk 0:02:47]}  Ned7 {[%clk 0:02:09]} 12. Qd2 {[%clk 0:02:46]}  b5 {[%clk 0:02:05]} 13. a3 {[%clk 0:02:39]}  Bb7 {[%clk 0:02:04]} 14. Bf3 {[%clk 0:02:36]}  O-O {[%clk 0:01:57]} 15. Qf2 {[%clk 0:02:36]}  Bxd4 {[%clk 0:01:49]} 16. Bxd4 {[%clk 0:02:37]}  e5 {[%clk 0:01:48]} 17. Be3 {[%clk 0:02:33]}  exf4 {[%clk 0:01:43]} 18. Bxf4 {[%clk 0:02:34]}  Ne5 {[%clk 0:01:40]} 19. Rad1 {[%clk 0:02:33]}  Rfe8 {[%clk 0:01:28]} 20. Qd4 {[%clk 0:02:23]}  Re6 {[%clk 0:01:18]} 21. h3 {[%clk 0:02:09]}  Rae8 {[%clk 0:01:06]} 22. Rfe1 {[%clk 0:02:03]}  h6 {[%clk 0:01:04]} 23. a4 {[%clk 0:01:57]}  bxa4 {[%clk 0:01:02]} 24. Bxe5 {[%clk 0:01:55]}  dxe5 {[%clk 0:01:00]} 25. Qxa4 {[%clk 0:01:54]}  Rb8 {[%clk 0:00:54]} 26. Nd5 {[%clk 0:01:52]}  Bxd5 {[%clk 0:00:53]} 27. exd5 {[%clk 0:01:53]}  Rd6 {[%clk 0:00:51]} 28. Rxe5 {[%clk 0:01:50]}  Rxb2 {[%clk 0:00:44]} 29. c4 {[%clk 0:01:51]}  Qc5 {[%clk 0:00:37]} 30. Rde1 {[%clk 0:01:44]}  g6 {[%clk 0:00:36]} 31. Qa1 {[%clk 0:01:38]}  Rb8 {[%clk 0:00:32]} 32. Qc3 {[%clk 0:01:35]}  a5 {[%clk 0:00:31]} 33. Qe3 {[%clk 0:01:31]}  Nd7 {[%clk 0:00:25]} 34. Re8+ {[%clk 0:01:25]}  Rxe8 {[%clk 0:00:25]} 35. Qxe8+ {[%clk 0:01:26]}  Kg7 {[%clk 0:00:24]} 36. Re7 {[%clk 0:01:23]}  Rf6 {[%clk 0:00:14]} 37. Rxd7 {[%clk 0:01:21]}  Qxc4 {[%clk 0:00:14]} 38. Qe5 {[%clk 0:01:16]}  Qc5 {[%clk 0:00:09]} 39. Rc7 {[%clk 0:01:12]}  Qb6 {[%clk 0:00:08]} 40. Rc6 {[%clk 0:01:11]} 1-0


[Site "https://www.chess.com"]

[Event "Titled Tuesday Blitz July 6 2021"]
[White "Quintiliano Pinto, Renato R."]
[Black "Noboa Silva, Kevin"]
[WhiteFideId "2117568"]
[BlackFideId "3618471"]
[WhiteElo "2439"]
[BlackElo "2161"]
[Result "1-0"]
[Round "07"]
[TimeControl "180+1"]
[Date "2021.07.06"]
[WhiteClock "0:00:31"]
[BlackClock "0:00:01"]

1. Nf3 {[%clk 0:03:00]}  Nf6 {[%clk 0:02:13]} 2. c4 {[%clk 0:03:00]}  c5 {[%clk 0:02:13]} 3. Nc3 {[%clk 0:02:59]}  b6 {[%clk 0:02:12]} 4. g3 {[%clk 0:02:59]}  Bb7 {[%clk 0:02:12]} 5. Bg2 {[%clk 0:02:59]}  e6 {[%clk 0:02:12]} 6. O-O {[%clk 0:02:59]}  a6 {[%clk 0:02:13]} 7. d4 {[%clk 0:02:59]}  cxd4 {[%clk 0:02:14]} 8. Qxd4 {[%clk 0:03:00]}  d6 {[%clk 0:02:13]} 9. Bg5 {[%clk 0:02:58]}  Be7 {[%clk 0:02:13]} 10. Bxf6 {[%clk 0:02:57]}  Bxf6 {[%clk 0:01:57]} 11. Qf4 {[%clk 0:02:56]}  O-O {[%clk 0:01:56]} 12. Rfd1 {[%clk 0:02:50]}  Be7 {[%clk 0:01:55]} 13. Ne4 {[%clk 0:02:50]}  Bxe4 {[%clk 0:01:46]} 14. Qxe4 {[%clk 0:02:51]}  Nd7 {[%clk 0:01:46]} 15. Ng5 {[%clk 0:02:06]}  Bxg5 {[%clk 0:01:37]} 16. Qxa8 {[%clk 0:02:06]}  Qxa8 {[%clk 0:01:36]} 17. Bxa8 {[%clk 0:02:06]}  Rxa8 {[%clk 0:01:36]} 18. Rxd6 {[%clk 0:02:06]}  Ne5 {[%clk 0:01:30]} 19. f4 {[%clk 0:01:56]}  Nxc4 {[%clk 0:01:19]} 20. Rd4 {[%clk 0:01:41]}  Bxf4 {[%clk 0:00:47]} 21. gxf4 {[%clk 0:01:35]}  b5 {[%clk 0:00:45]} 22. b3 {[%clk 0:01:32]}  Ne3 {[%clk 0:00:45]} 23. Rc1 {[%clk 0:01:26]}  h5 {[%clk 0:00:33]} 24. h3 {[%clk 0:01:24]}  h4 {[%clk 0:00:31]} 25. Kf2 {[%clk 0:01:22]}  Nf5 {[%clk 0:00:29]} 26. Rd7 {[%clk 0:01:22]}  Rf8 {[%clk 0:00:22]} 27. Rc6 {[%clk 0:01:20]}  g6 {[%clk 0:00:18]} 28. Kf3 {[%clk 0:01:15]}  Kg7 {[%clk 0:00:15]} 29. e4 {[%clk 0:01:13]}  Ng3 {[%clk 0:00:14]} 30. b4 {[%clk 0:01:05]}  Ra8 {[%clk 0:00:13]} 31. Rcc7 {[%clk 0:01:03]}  Rf8 {[%clk 0:00:14]} 32. a3 {[%clk 0:01:01]}  g5 {[%clk 0:00:14]} 33. fxg5 {[%clk 0:00:59]}  Kg6 {[%clk 0:00:14]} 34. Ra7 {[%clk 0:00:57]}  Nf1 {[%clk 0:00:11]} 35. Kf4 {[%clk 0:00:52]}  Ng3 {[%clk 0:00:08]} 36. Rxa6 {[%clk 0:00:49]}  Rc8 {[%clk 0:00:08]} 37. Raa7 {[%clk 0:00:49]}  Nh5+ {[%clk 0:00:08]} 38. Ke3 {[%clk 0:00:46]}  Rc3+ {[%clk 0:00:06]} 39. Kd4 {[%clk 0:00:46]}  Rxh3 {[%clk 0:00:06]} 40. Rxf7 {[%clk 0:00:46]}  Kxg5 {[%clk 0:00:06]} 41. Rf1 {[%clk 0:00:40]}  Rb3 {[%clk 0:00:04]} 42. Ke5 {[%clk 0:00:36]}  Kg4 {[%clk 0:00:03]} 43. Rf8 {[%clk 0:00:31]}  h3 {[%clk 0:00:01]} 44. Rg8+ {[%clk 0:00:31]} 1-0


[Site "https://www.chess.com"]